Cogmind - Beta 9.1 @@@ ROGUE MODE // 2019.11.09 @ 17:02:00 Player: Rilt Result: Destroyed by G-47 Trooper with Particle Gun Performance ------------- Evolutions (0) 0 Regions Visited (2) 400 Robots Destroyed (17) 85 Value Destroyed (341) 341 Prototype IDs (1) 20 Alien Tech Used (0) 0 Bonus (0) 0 TOTAL SCORE: 846 Bonus ------- None Cogmind --------- Core Integrity 0/250 Matter 123/300 Energy 265/265 System Corruption 2% Temperature Cool (10) Location -10/Mines Parts ------- Power (1) Improved Ion Engine Propulsion (2) Light Treads Light Treads Utility (2) Large Storage Unit Weapon (2) Mini Grenade Launcher Makeshift Hammer Inventory (10) Light Ion Engine Light Treads Large Storage Unit Faulty Experimental Sensor Array Signal Interpreter Small Laser Assault Rifle Light Assault Rifle Peak State ------------ Power Improved Ion Engine Propulsion Light Treads Light Treads Utility Large Storage Unit Experimental Sensor Array Weapon Mini Grenade Launcher Makeshift Hammer Inventory Light Ion Engine Light Treads Large Storage Unit Small Laser Assault Rifle Light Assault Rifle [Rating: 17] Favorites ----------- Power Improved Ion Engine Engine Improved Ion Engine Propulsion Light Treads Treads Light Treads Leg Aluminum Leg Utility Large Storage Unit Device Cooling System Storage Large Storage Unit Weapon Mini Grenade Launcher Energy Gun Small Laser Ballistic Gun Assault Rifle Launcher Mini Grenade Launcher Impact Weapon Makeshift Hammer Build | -11 -10 -10 ------- Run | Scr Mat Min Slots Evolved . | . . . Power . | . . . Propulsion . | . . . Utility . | . . . Weapon . | . . . Parts Attached 22 | 7 13 2 Power 4 | 1 3 . Engine 4 | 1 3 . Core . | . . . Reactor . | . . . Propulsion 6 | 2 4 . Treads 4 | . 4 . Leg 2 | 2 . . Wheel . | . . . Hover . | . . . Flight . | . . . Utility 4 | 1 2 1 Device 2 | . 1 1 Storage 2 | 1 1 . Processor . | . . . Hackware . | . . . Protection . | . . . Artifact . | . . . Weapon 8 | 3 4 1 Energy Gun 2 | 1 1 . Energy Cannon . | . . . Ballistic Gun 2 | 2 . . Ballistic Cannon . | . . . Launcher 3 | . 3 . Special Weapon . | . . . Impact Weapon 1 | . . 1 Slashing Weapon . | . . . Piercing Weapon . | . . . Special Melee Weapon . | . . . Unidentified Prototypes 1 | . . 1 Parts Lost 3 | . 3 . Power . | . . . Propulsion 1 | . 1 . Utility 1 | . 1 . Weapon 1 | . 1 . Highest Loss Streak 1 | . 1 . Average Slot Usage (%) 86 | . 87 85 Engine 14 | . 14 14 Treads 27 | . 26 28 Device 3 | . 5 . Storage 14 | . 14 14 Energy Gun 1 | . 1 1 Ballistic Gun 2 | . 5 . Launcher 15 | . 16 14 Impact Weapon 6 | . . 12 Naked Turns . | . . . Heaviest Build 28 | 10 28 28 Greatest Support 40 | 20 40 40 Greatest Overweight (x) 1 | . 1 . Average Overweight (x) . | . . . Largest Inventory Capacity 10 | 6 10 10 Average Capacity 9 | 5 9 10 Most Carried 10 | 4 10 8 Average Carried 6 | 2 7 7 Final Capacity 10 | 6 10 10 Final Carried 8 | 4 6 8 Class Distribution -------------------- 100% | Mutant Dominant Class ---------------- Mutant | -10/Materials Mutant | -10/Mines Resources | -11 -10 -10 ----------- Run | Scr Mat Min Matter Collected 387 | 112 165 110 Remotely . | . . . Salvage Created 277 | . 207 70 Parts 20 | . 13 7 Haulers Intercepted . | . . . Recyclers Shooed . | . . . Parts Field Recycled . | . . . Retrieved Matter . | . . . Parts Self-Destructed . | . . . Prevented . | . . . Kills | -11 -10 -10 ------- Run | Scr Mat Min Combat Hostiles Destroyed 9 | . 7 2 Melee 1 | . 1 . AOE 8 | . 6 2 Classes Destroyed 7 | . 6 1 Worker 2 | . 1 1 Builder 2 | . 1 1 Tunneler 2 | . . 2 Recycler 1 | . 1 . Watcher 1 | . 1 . Swarmer 3 | . 3 . Grunt 6 | . 4 2 Best Kill Streak 4 | . 4 4 Combat Bots Only 3 | . 3 2 Max Kills in Single Turn 3 | . 3 1 Gunslinging . | . . . Exploded 2 | . 2 1 Melee 1 | . 1 . Uniques/NPCs Destroyed . | . . . Combat | -11 -10 -10 -------- Run | Scr Mat Min Damage Taken 1054 | . 927 127 Core 262 | . 215 47 Absorbed by Shields . | . . . Core Remaining (%) 100 | 100 . . Volleys Fired 18 | . 11 7 Largest 2 | . 2 1 Hottest 60 | . 60 30 Shots Fired 22 | . 15 7 Gun 3 | . 3 . Cannon . | . . . Launcher 19 | . 12 7 Special . | . . . Kinetic 3 | . 3 . Thermal . | . . . Explosive 19 | . 12 7 Electromagnetic . | . . . Robot Hit Streak 6 | . 6 2 Robot Miss Streak 5 | . 5 3 Penetration Max . | . . . Secondary Targets . | . . . Shots Hit Robots 11 | . 8 3 Core Hits 22 | . 15 7 Critical Hits . | . . . Critical Kills . | . . . Critical Parts Destroyed . | . . . Melee Attacks 1 | . . 1 Impact 1 | . . 1 Slashing . | . . . Piercing . | . . . Sneak Attacks 1 | . . 1 Combat Hostiles . | . . . Follow-up Attacks . | . . . Damage Inflicted 1312 | . 834 478 Guns 38 | . 38 . Cannons . | . . . Explosions 1096 | . 733 363 Melee 115 | . . 115 Ramming 63 | . 63 . Kinetic 38 | . 38 . Thermal . | . . . Explosive 1096 | . 733 363 Electromagnetic . | . . . Impact 115 | . . 115 Slashing . | . . . Piercing . | . . . Highest Corruption 2 | . 2 2 Average Corruption 2 | . 2 2 Corruption Purged . | . . . Effects 11 | . 3 8 Message Errors 4 | . 1 3 Heat Flow Errors 1 | . 1 . Energy Discharges 4 | . 1 3 Data Loss (minor) 2 | . . 2 Overload Shots . | . . . Overflow Damage 100 | . . 100 Projectiles . | . . . Explosions 7 | . . 7 Melee 93 | . . 93 Knockbacks 1 | . . 1 Impact 1 | . . 1 Kinetic . | . . . Secondary . | . . . Self-Inflicted Damage 96 | . 57 39 Shots 4 | . 2 2 Rammed 10 | . 10 . Targets Rammed 12 | . 12 . Kicked . | . . . Crushed 2 | . 2 . Highest Temperature 207 | . 207 8 Average Temperature 38 | . 81 4 Received Heat Transfer 450 | . 396 54 Siege Activations . | . . . Robots Corrupted . | . . . Combat Hostiles . | . . . Parts Fried 1 | . . 1 Impact Corruptions 3 | . . 3 Robots Melted . | . . . Combat Hostiles . | . . . Parts Melted . | . . . Heat Transferred . | . . . Parts Sabotaged . | . . . Parts Stolen . | . . . Parts Stripped . | . . . Power Chain Reactions . | . . . Missiles Intercepted . | . . . Alert | -11 -10 -10 ------- Run | Scr Mat Min Peak Influence 150 | . 150 63 Average Influence 41 | . 50 35 Maximum Alert Level . | . . . Low Security (%) 100 | . . . Level 1 . | . . . Level 2 . | . . . Level 3 . | . . . Level 4 . | . . . Level 5 . | . . . High Security . | . . . Max Security . | . . . Squads Dispatched . | . . . Investigation . | . . . Extermination . | . . . Reinforcement . | . . . Assault . | . . . Garrison . | . . . Intercept . | . . . Construction Impeded . | . . . Haulers Reinforced . | . . . Stealth | -11 -10 -10 --------- Run | Scr Mat Min Distress Signals . | . . . Communications Jammed . | . . . Distress Signals . | . . . Times Spotted 18 | . 14 4 Peak Tracking Total 5 | . 5 2 Tactical Retreats 1 | . 1 . Traps | -11 -10 -10 ------- Run | Scr Mat Min Traps Triggered 1 | . 1 . Indirectly . | . . . Trap Hack Attempts . | . . . Triggered . | . . . Disarmed . | . . . Reprogrammed . | . . . Reused . | . . . Traps Extracted . | . . . Installed . | . . . Triggered . | . . . Machines | -11 -10 -10 ---------- Run | Scr Mat Min Machines Disabled 2 | . 2 . Max in Single Turn 1 | . 1 . Machines Sabotaged . | . . . Garrisons Compromised . | . . . Overloaded Fab Kills . | . . . Fab Network Shutdowns . | . . . Hacking | -11 -10 -10 --------- Run | Scr Mat Min Machines Accessed 3 | . 3 . Terminals 3 | . 3 . Fabricators . | . . . Repair Stations . | . . . Recycling Units . | . . . Scanalyzers . | . . . Garrison Access . | . . . Total Hacks 8 | . 8 . Successful 6 | . 6 . Failed 2 | . 2 . Catastrophic . | . . . Database Lockouts . | . . . Manual . | . . . Terminals 8 | . 8 . Fabricators . | . . . Repair Stations . | . . . Recycling Units . | . . . Scanalyzers . | . . . Garrison Access . | . . . Terminal Hacks 6 | . 6 . Record 1 | . 1 . Emergency Access Points 1 | . 1 . Locate Traps 1 | . 1 . Investigation Status 1 | . 1 . Hauler Manifests 1 | . 1 . Zone Layout 1 | . 1 . Fabricator Hacks . | . . . Repair Station Hacks . | . . . Recycling Unit Hacks . | . . . Scanalyzer . | . . . Garrison Access Hacks . | . . . Unauthorized Hacks . | . . . Terminals . | . . . Fabricators . | . . . Repair Stations . | . . . Recycling Units . | . . . Scanalyzers . | . . . Garrison Access . | . . . Data Cores Recovered . | . . . Used . | . . . Hacking Detections 2 | . 2 . Full Trace Events 2 | . 2 . Feedback Events . | . . . Feedback Blocked . | . . . Robot Schematics Acquired . | . . . Robots Built . | . . . Matter . | . . . Time . | . . . Total Robot Build Rating . | . . . Part Schematics Acquired . | . . . Parts Built . | . . . Matter . | . . . Time . | . . . Total Part Build Rating . | . . . Parts Repaired . | . . . Time . | . . . Parts Recycled . | . . . Recycled Matter . | . . . Retrieved Matter . | . . . Retrieved Components . | . . . Parts Scanalyzed . | . . . Part Schematics Acquired . | . . . Parts Damaged . | . . . Bothacking | -11 -10 -10 ------------ Run | Scr Mat Min Used RIF Installer . | . . . Robots Hacked . | . . . Non-combat . | . . . Combat . | . . . Robot Hacks Applied . | . . . Relay Couplers Released . | . . . Robots Rewired . | . . . Allies Hacked . | . . . Hacks Repelled . | . . . Allies | -11 -10 -10 -------- Run | Scr Mat Min Total Allies 2 | . . 2 Largest Group 2 | . . 2 Highest-Rated Group 47 | . . 47 Highest-Rated Ally 31 | . . 31 Total Orders . | . . . Ally Attacks 3 | . . 3 Total Damage 40 | . . 40 Kills . | . . . Allies Corrupted . | . . . Allies Melted . | . . . Intel | -11 -10 -10 ------- Run | Scr Mat Min Robot Analysis Total . | . . . Derelict Logs Recovered 2 | . . 2 Drone Launches . | . . . Drone Recoveries . | . . . Exploration | -11 -10 -10 ------------- Run | Scr Mat Min Turns Passed 1684 | 54 783 847 Spaces Moved 969 | 40 443 486 Core 14 | 14 . . Treads 907 | . 421 486 Legs 48 | 26 22 . Wheels . | . . . Hover . | . . . Flight . | . . . Fastest Speed 50 | 50 120 160 Average Speed 157 | 95 159 160 Slowest Speed 180 | 120 180 160 Overloaded Moves . | . . . Propulsion Burnouts . | . . . Robots Hopped . | . . . Cave-ins Triggered . | . . . Exploration Rate (%) 43 | 4 43 84 Regions Visited 2 Branch Regions 1 Pre-discovered Areas 1 | . . 1 Known Exits Taken . | . . . Unknown Exits Taken 2 | 1 1 . Scrap Searched 1 | . . 1 Spaces Dug . | . . . Terrain Destroyed 144 | . 68 76 Melee . | . . . Projectile . | . . . AOE 144 | . 68 76 Actions | -11 -10 -10 --------- Run | Scr Mat Min Total 1101 | 54 498 549 Wait 48 | . . 48 Move 967 | 39 442 486 Hop . | . . . Pick Up 23 | 8 12 3 Fast Attach 2 | 2 . . Attach 10 | 4 5 1 Detach 2 | . 1 1 Swap 10 | 1 8 1 Drop 8 | . 7 1 Fire 18 | . 11 7 Melee 1 | . . 1 Ram . | . . . Kick . | . . . Crush 12 | . 12 . Escape Stasis . | . . . Rewire . | . . . Trap . | . . . Miscellaneous . | . . . Route ------- -11/Scrapyard -10/Materials -10/Mines (discovered 1 exit: [*Mat]) History --------- Turn | Location | Event 6 | -11/Scrapyard | Discovered new exit (range 15) 55 | -11/Scrapyard | Entered Materials 311 | -10/Materials | Build established: Mutant 628 | -10/Materials | Core integrity fell below 50% 706 | -10/Materials | Core integrity fell below 20% 766 | -10/Materials | Discovered new exit (range 14) 838 | -10/Materials | Entered Mines 852 | -10/Mines | Learned 2 Materials zone layouts 898 | -10/Mines | A weapon hastily lodged in a ceiling crevice suddenly fell to the ground 976 | -10/Mines | Found a damaged Exp. Sensor Array with a note attached 981 | -10/Mines | Found Prototype Device 982 | -10/Mines | Identified Exp. Sensor Array 1349 | -10/Mines | Learned location of Storage (-8) 1353 | -10/Mines | Discovered new exit (range 11) 1685 | -10/Mines | Destroyed by G-47 Trooper with Particle Gun Last Messages --------------- Destroyed Sml. Laser. LVLBVGODEK>PMX:Q18 HNJ,G G-34 Mercenary destroyed. The unstable cave ceiling collapses. G-47 Trooper destroyed. The unstable cave ceiling collapses. Acquired 14 matter. The unstable cave ceiling collapses. A pair of derelicts emerge from the shadows: "We're, um, lost. You wouldn't happen to know the way out of here, would you?" GUNRLRYQOAP:VHTJ2X|& :MDA,BXOARLM System corrupted: Component data lost. System corrupted: Energy discharge (-58). T-07 Excavator is excavating. U-05 Engineer lays Concrete. T-07 Excavator is excavating. U-05 Engineer lays Concrete. U-05 Engineer builds a Wall. T-07 Excavator is excavating. T-07 Excavator destroyed. Map ----- +----------------------------------------------------+ | ?????????????## ##?????????????? | | ????????????## ##??????????????? | | ????????????# #???????????????? | | ????????????# ##??????????????? | | ????????????# ##?????????????? | | ????????????# #?########????? | | ???????????## #?# ###??? | | ??????###### #?# #??? | | ?????## #?## ### #??? | | ###### ##??# #?## ##??? | | #???# #???##???? | | ##### #????????? | | ##### ### #????????? | | #### ##?## ##### #????????? | | ### ##???#####???# #????????? | | ##?###????????????#z #????????? | | ##???????????????### #????????? | | #??????????????## ##???????? | | # #????????????## ##??????? | | ##????????????# ##?????? | | ##?????????????# ##????? | | ##??????????????## ## ####?? | | ?????????????????####?##g ##? | | ???????????????????????# #? | | ???????????????????????# #? | | ???????????????????????# @ ##? | | ???????????????????????# ##?? | | ??????????????????????# #?? | | ??????????????????????# ##?? | | ??????????????????????# #??? | | ??????????????????????# ??? | | ??????????????????????# ##?? | | ?????????????????????? # #??? | | ??????????????????????# ####??? | | ??????????????????????### ??????? | | ?????????????????????????g??????? | | ????????????????????????? ??????? | | ????????????????????????? ??????? | | ?????######?????????????? ??????? | | ????## ##????????????? ??????? | | ???## #????????????? ??????? | | ??## ##???????????????????? | | ### ###?????????????????? | | * #?????????????????? | | ??????????? | | ### ##### #???????????? | | #???# #????????"" #???????????? | | ?????# #???????????????????????? | | ?????# #???????????????????????? | | ?????# #???????????????????????? | +----------------------------------------------------+ Best States ------------- Heat Dissipation 47 Energy Generation 12 Energy Capacity 265 Matter Stores 179 Matter Capacity 300 Sight Range 16 Terrain Scan Density 10 Evasion (%) 50 Recoil Reduction 2 Item Schematics ----------------- None Robot Schematics ------------------ None Fabricated ------------ Nothing Alien Tech Used ----------------- None Achievements -------------- None Challenges ------------ None Game ------ Seed ChromaticGravityBooster Manual? 0 Play Time 00:14:08 Cumulative 4.3 hours Start 2019.11.09 @ 16:48:09 End 2019.11.09 @ 17:02:00 Sessions 1 Manual Loads 0 Difficulty Rogue Special Mode None Game No. 6 Rogue 6 Adventurer 0 Explorer 0 Win Type - Total 0 Types 0/0/0/0/0/0/0 Lore% 12 Gallery% 10 Achievement% 10 Wizard Run 0 Options --------- ASCII 0 Keyboard 0 Movement Mouse Keybinds 0 Fullscreen 1 Font 20/SmallcapsGlow Map View 66x50 Tactical HUD 0 Map Filters NONE Filters NONE Steam 1 RUN: 9253c632-4da5-4064-af5a-2aa6636135f6